[Event "*** Titled Tuesday Blitz"]
[Site "Chess.com"]
[Date "2020.12.01"]
[Round "6"]
[White "Rital44"]
[Black "Nikolaj_6"]
[Result "0-1"]
[WhiteElo "2453"]
[BlackElo "2628"]
[TimeControl "180+1"]
[EndTime "11:03:34 PST"]
[Termination "Nikolaj_6 won by resignation"]

1. e4 {[%clk 0:03:00.9]} 1... c5 {[%clk 0:02:59.9]} 2. Nf3 {[%clk 0:02:57.3]}
2... d6 {[%clk 0:03:00.2]} 3. d4 {[%clk 0:02:57.3]} 3... cxd4 {[%clk 0:03:01.1]}
4. Nxd4 {[%clk 0:02:57.9]} 4... Nf6 {[%clk 0:03:01.4]} 5. Nc3 {[%clk 0:02:57.7]}
5... a6 {[%clk 0:03:01.8]} 6. Be3 {[%clk 0:02:56.5]} 6... e5 {[%clk 0:03:01.4]}
7. Nb3 {[%clk 0:02:55.8]} 7... Be6 {[%clk 0:03:01.7]} 8. h3 {[%clk 0:02:56]}
8... h5 {[%clk 0:03:00]} 9. Qd2 {[%clk 0:02:46.8]} 9... Nbd7 {[%clk 0:02:58.1]}
10. O-O-O {[%clk 0:02:46.4]} 10... Rc8 {[%clk 0:02:57.8]} 11. f4 {[%clk
0:02:44.1]} 11... Be7 {[%clk 0:02:48.5]} 12. f5 {[%clk 0:02:41.9]} 12... Bc4
{[%clk 0:02:48.4]} 13. Bd3 {[%clk 0:02:18.4]} 13... h4 {[%clk 0:02:46.7]} 14.
Kb1 {[%clk 0:02:16.9]} 14... b5 {[%clk 0:02:46.2]} 15. g4 {[%clk 0:01:58]} 15...
hxg3 {[%clk 0:02:45.7]} 16. Rdg1 {[%clk 0:01:58.6]} 16... Nh5 {[%clk 0:02:44.5]}
17. Nd5 {[%clk 0:01:54.7]} 17... Bxd5 {[%clk 0:02:40]} 18. exd5 {[%clk
0:01:55.6]} 18... Ndf6 {[%clk 0:02:35.8]} 19. Be2 {[%clk 0:01:55.2]} 19... Qc7
{[%clk 0:02:05.2]} 20. Na5 {[%clk 0:01:46.4]} 20... Nxd5 {[%clk 0:01:54.3]} 21.
Bxh5 {[%clk 0:01:46.4]} 21... Nxe3 {[%clk 0:01:52]} 22. Qxe3 {[%clk 0:01:41.2]}
22... Qxc2+ {[%clk 0:01:44.1]} 23. Ka1 {[%clk 0:01:40.2]} 23... Rxh5 {[%clk
0:01:39.6]} 24. Rc1 {[%clk 0:01:29.8]} 24... g2 {[%clk 0:01:37.6]} 25. Rhg1
{[%clk 0:01:29.4]} 25... Qxf5 {[%clk 0:01:04.5]} 26. Nc6 {[%clk 0:01:20]} 26...
Rxh3 {[%clk 0:00:56.1]} 27. Qa7 {[%clk 0:01:10.9]} 27... Qd7 {[%clk 0:00:45]}
28. Qxa6 {[%clk 0:01:10.1]} 28... Rh1 {[%clk 0:00:40.2]} 29. Rxh1 {[%clk
0:01:05.8]} 29... gxh1=Q {[%clk 0:00:39.7]} 30. Rxh1 {[%clk 0:01:06.7]} 30...
Qxc6 {[%clk 0:00:38.7]} 31. Rh8+ {[%clk 0:01:01.2]} 31... Bf8 {[%clk 0:00:38.6]}
0-1

[Event "*** Titled Tuesday Blitz"]
[Site "Chess.com"]
[Date "2020.12.01"]
[Round "6"]
[White "FMOlexandrProhorov"]
[Black "LastHeroJr"]
[Result "1-0"]
[WhiteElo "2215"]
[BlackElo "2370"]
[TimeControl "180+1"]
[EndTime "11:03:38 PST"]
[Termination "FMOlexandrProhorov won on time"]

1. e4 {[%clk 0:03:00.9]} 1... Nc6 {[%clk 0:02:51.6]} 2. d4 {[%clk 0:02:57.7]}
2... e5 {[%clk 0:02:51.1]} 3. dxe5 {[%clk 0:02:48.6]} 3... Nxe5 {[%clk 0:02:52]}
4. Nf3 {[%clk 0:02:48.8]} 4... Qf6 {[%clk 0:02:52.1]} 5. Be2 {[%clk 0:02:46.9]}
5... Bc5 {[%clk 0:02:46.9]} 6. O-O {[%clk 0:02:45.7]} 6... Ne7 {[%clk
0:02:37.4]} 7. Nc3 {[%clk 0:02:45.2]} 7... O-O {[%clk 0:02:20.6]} 8. Na4 {[%clk
0:02:38.5]} 8... Nxf3+ {[%clk 0:02:13.3]} 9. Bxf3 {[%clk 0:02:36.2]} 9... Bd4
{[%clk 0:02:06.6]} 10. c3 {[%clk 0:02:20.7]} 10... Be5 {[%clk 0:02:06.6]} 11.
Be3 {[%clk 0:02:16.7]} 11... d6 {[%clk 0:01:55.2]} 12. Qd2 {[%clk 0:02:02.2]}
12... h6 {[%clk 0:01:37.8]} 13. Be2 {[%clk 0:01:54.5]} 13... Bd7 {[%clk
0:01:34.8]} 14. Qc2 {[%clk 0:01:44]} 14... g5 {[%clk 0:01:15.6]} 15. Rad1 {[%clk
0:01:36.4]} 15... b5 {[%clk 0:01:14.9]} 16. Nc5 {[%clk 0:01:36]} 16... dxc5
{[%clk 0:00:47.8]} 17. Rxd7 {[%clk 0:01:35.2]} 17... Bd6 {[%clk 0:00:48.3]} 18.
Bxb5 {[%clk 0:01:23]} 18... Qe6 {[%clk 0:00:37.8]} 19. Rd1 {[%clk 0:01:03.8]}
1-0

[Event "*** Titled Tuesday Blitz"]
[Site "Chess.com"]
[Date "2020.12.01"]
[Round "6"]
[White "PotapovaM"]
[Black "malakismayil"]
[Result "1-0"]
[WhiteElo "2580"]
[BlackElo "2272"]
[TimeControl "180+1"]
[EndTime "11:03:40 PST"]
[Termination "PotapovaM won on time"]

1. Nf3 {[%clk 0:03:00.2]} 1... Nf6 {[%clk 0:02:58.2]} 2. c4 {[%clk 0:02:57.3]}
2... e6 {[%clk 0:02:58.1]} 3. g3 {[%clk 0:02:56.7]} 3... d5 {[%clk 0:02:58.4]}
4. Bg2 {[%clk 0:02:57]} 4... Be7 {[%clk 0:02:57.6]} 5. O-O {[%clk 0:02:56.4]}
5... O-O {[%clk 0:02:56.1]} 6. d4 {[%clk 0:02:56.8]} 6... dxc4 {[%clk
0:02:53.4]} 7. Ne5 {[%clk 0:02:56.2]} 7... Nc6 {[%clk 0:02:53]} 8. Bxc6 {[%clk
0:02:56.5]} 8... bxc6 {[%clk 0:02:53.9]} 9. Nxc6 {[%clk 0:02:57.4]} 9... Qe8
{[%clk 0:02:51.3]} 10. Nxe7+ {[%clk 0:02:58.3]} 10... Qxe7 {[%clk 0:02:52.2]}
11. Nc3 {[%clk 0:02:59.2]} 11... Bb7 {[%clk 0:02:50.5]} 12. Qa4 {[%clk
0:02:55.9]} 12... c5 {[%clk 0:02:16.4]} 13. Qa3 {[%clk 0:02:33.4]} 13... Rfc8
{[%clk 0:01:53.8]} 14. Na4 {[%clk 0:02:32.2]} 14... Nd7 {[%clk 0:01:27.5]} 15.
Be3 {[%clk 0:02:27.5]} 15... e5 {[%clk 0:01:05.7]} 16. dxc5 {[%clk 0:02:13.9]}
16... f5 {[%clk 0:00:42.1]} 17. Qb4 {[%clk 0:02:01.5]} 17... Bd5 {[%clk
0:00:36.1]} 18. Qd2 {[%clk 0:02:00]} 18... Nf6 {[%clk 0:00:27.4]} 19. Bg5 {[%clk
0:01:58.6]} 19... Rd8 {[%clk 0:00:25.5]} 20. Qc2 {[%clk 0:01:53.5]} 20... h6
{[%clk 0:00:22.6]} 21. Bxf6 {[%clk 0:01:50.6]} 21... Qxf6 {[%clk 0:00:23.5]} 22.
Rad1 {[%clk 0:01:45.9]} 22... Qc6 {[%clk 0:00:13.9]} 23. f3 {[%clk 0:01:38.1]}
23... Kh8 {[%clk 0:00:07.1]} 24. Rd2 {[%clk 0:01:28.5]} 24... e4 {[%clk
0:00:05.5]} 25. Rfd1 {[%clk 0:01:20.7]} 25... exf3 {[%clk 0:00:01.9]} 26. exf3
{[%clk 0:01:21.6]} 1-0

[Event "*** Titled Tuesday Blitz"]
[Site "Chess.com"]
[Date "2020.12.01"]
[Round "6"]
[White "VladimirBugayev"]
[Black "fish7728"]
[Result "1-0"]
[WhiteElo "2290"]
[BlackElo "2148"]
[TimeControl "180+1"]
[EndTime "11:03:41 PST"]
[Termination "VladimirBugayev won by resignation"]

1. e4 {[%clk 0:03:00.9]} 1... c5 {[%clk 0:02:59.8]} 2. Nc3 {[%clk 0:02:59.8]}
2... Nc6 {[%clk 0:02:58.1]} 3. Bb5 {[%clk 0:02:59.3]} 3... Nd4 {[%clk
0:02:58.1]} 4. Nf3 {[%clk 0:02:59.9]} 4... Nxb5 {[%clk 0:02:57.8]} 5. Nxb5
{[%clk 0:02:59.4]} 5... a6 {[%clk 0:02:57.9]} 6. Nc3 {[%clk 0:02:59.9]} 6... g6
{[%clk 0:02:58.6]} 7. d4 {[%clk 0:03:00.4]} 7... Bg7 {[%clk 0:02:58.7]} 8. dxc5
{[%clk 0:02:53]} 8... Qa5 {[%clk 0:02:57.7]} 9. Be3 {[%clk 0:02:40.3]} 9...
Bxc3+ {[%clk 0:02:45.9]} 10. bxc3 {[%clk 0:02:39.3]} 10... Qxc3+ {[%clk
0:02:46.2]} 11. Nd2 {[%clk 0:02:39.8]} 11... Nf6 {[%clk 0:02:43.5]} 12. O-O
{[%clk 0:02:38.8]} 12... O-O {[%clk 0:02:42.6]} 13. Rb1 {[%clk 0:02:27.3]} 13...
Rd8 {[%clk 0:02:33.5]} 14. Rb3 {[%clk 0:02:25.2]} 14... Qa5 {[%clk 0:02:27.8]}
15. Nc4 {[%clk 0:02:01.6]} 15... Qc7 {[%clk 0:02:22.9]} 16. e5 {[%clk
0:01:33.1]} 16... Ne8 {[%clk 0:02:11.7]} 17. Rd3 {[%clk 0:01:23.8]} 17... Ng7
{[%clk 0:02:11.5]} 18. Qd2 {[%clk 0:01:08.5]} 18... Ne6 {[%clk 0:02:08]} 19. Nb6
{[%clk 0:01:04]} 19... Rb8 {[%clk 0:02:07.6]} 20. Nd5 {[%clk 0:01:04]} 20...
Qxe5 {[%clk 0:01:55.7]} 21. Nxe7+ {[%clk 0:00:51.5]} 21... Kf8 {[%clk
0:01:49.6]} 22. Nd5 {[%clk 0:00:46.3]} 22... d6 {[%clk 0:01:40.3]} 23. Bh6+
{[%clk 0:00:36.5]} 23... Ke8 {[%clk 0:01:31.1]} 24. Re1 {[%clk 0:00:34.2]} 24...
Qf5 {[%clk 0:01:24.7]} 25. Nc7+ {[%clk 0:00:19.2]} 25... Kd7 {[%clk 0:01:23.3]}
26. Nxe6 {[%clk 0:00:18.3]} 26... fxe6 {[%clk 0:01:21.8]} 27. Rxd6+ {[%clk
0:00:18.7]} 27... Kc7 {[%clk 0:01:22.1]} 28. Rxd8 {[%clk 0:00:18.9]} 28... Qxc5
{[%clk 0:01:20.9]} 29. Be3 {[%clk 0:00:15.7]} 29... Qc6 {[%clk 0:01:19.3]} 30.
Bf4+ {[%clk 0:00:14.9]} 30... Kb6 {[%clk 0:01:18.9]} 31. Qd4+ {[%clk 0:00:13.7]}
31... Ka5 {[%clk 0:01:18.4]} 32. Bxb8 {[%clk 0:00:12.6]} 1-0

[Event "*** Titled Tuesday Blitz"]
[Site "Chess.com"]
[Date "2020.12.01"]
[Round "6"]
[White "PelinGorki"]
[Black "Volodar_Murzin"]
[Result "0-1"]
[WhiteElo "2414"]
[BlackElo "2597"]
[TimeControl "180+1"]
[EndTime "11:03:42 PST"]
[Termination "Volodar_Murzin won by resignation"]

1. e4 {[%clk 0:03:00.9]} 1... c5 {[%clk 0:02:59.4]} 2. a3 {[%clk 0:02:58.7]}
2... d6 {[%clk 0:02:59]} 3. b4 {[%clk 0:02:57.8]} 3... Nf6 {[%clk 0:02:58.6]} 4.
Nc3 {[%clk 0:02:56.6]} 4... Nc6 {[%clk 0:02:56.3]} 5. Nf3 {[%clk 0:02:55.3]}
5... e5 {[%clk 0:02:53.6]} 6. Bc4 {[%clk 0:02:52]} 6... h6 {[%clk 0:02:50.7]} 7.
O-O {[%clk 0:02:50.8]} 7... cxb4 {[%clk 0:02:47.5]} 8. axb4 {[%clk 0:02:50.4]}
8... Be6 {[%clk 0:02:47.6]} 9. Bxe6 {[%clk 0:02:46.9]} 9... fxe6 {[%clk
0:02:48.5]} 10. d4 {[%clk 0:02:46.7]} 10... exd4 {[%clk 0:02:45]} 11. Nxd4
{[%clk 0:02:45.6]} 11... Nxd4 {[%clk 0:02:36.9]} 12. Qxd4 {[%clk 0:02:46.5]}
12... a6 {[%clk 0:02:37.5]} 13. e5 {[%clk 0:02:37.6]} 13... dxe5 {[%clk
0:02:36.8]} 14. Qxe5 {[%clk 0:02:38.5]} 14... Bxb4 {[%clk 0:02:37.2]} 15. Ne4
{[%clk 0:02:23.6]} 15... Qe7 {[%clk 0:02:22.7]} 16. Ra4 {[%clk 0:01:46.1]} 16...
O-O {[%clk 0:02:14.4]} 17. Bb2 {[%clk 0:01:12.8]} 17... Nxe4 {[%clk 0:02:00.1]}
18. Qxe4 {[%clk 0:01:13.7]} 18... Bc5 {[%clk 0:01:59.3]} 19. Rc4 {[%clk
0:00:41.1]} 19... Rac8 {[%clk 0:01:53.6]} 20. Qg4 {[%clk 0:00:25.6]} 20... Ba7
{[%clk 0:01:35]} 21. Re4 {[%clk 0:00:21.3]} 21... Rxc2 {[%clk 0:01:21.2]} 22.
Rxe6 {[%clk 0:00:19.9]} 22... Qf7 {[%clk 0:01:07.3]} 23. Bxg7 {[%clk 0:00:10.1]}
23... Qxf2+ {[%clk 0:01:04.9]} 0-1

[Event "*** Titled Tuesday Blitz"]
[Site "Chess.com"]
[Date "2020.12.01"]
[Round "6"]
[White "igorkovalenko"]
[Black "Isajevsky_Anton"]
[Result "1-0"]
[WhiteElo "2791"]
[BlackElo "2576"]
[TimeControl "180+1"]
[EndTime "11:03:46 PST"]
[Termination "igorkovalenko won on time"]

1. d4 {[%clk 0:03:00.9]} 1... d5 {[%clk 0:02:58.5]} 2. Nf3 {[%clk 0:03:01.8]}
2... Nf6 {[%clk 0:02:57.6]} 3. c4 {[%clk 0:03:02.3]} 3... e6 {[%clk 0:02:54.2]}
4. Nc3 {[%clk 0:03:02.7]} 4... a6 {[%clk 0:02:41.8]} 5. cxd5 {[%clk 0:03:01.6]}
5... exd5 {[%clk 0:02:42.7]} 6. Bg5 {[%clk 0:03:00]} 6... Be6 {[%clk 0:02:42.3]}
7. e3 {[%clk 0:03:00.2]} 7... Nbd7 {[%clk 0:02:40.4]} 8. h3 {[%clk 0:02:51.9]}
8... Bb4 {[%clk 0:02:24.9]} 9. Qb3 {[%clk 0:02:51.3]} 9... c5 {[%clk 0:02:24.2]}
10. Be2 {[%clk 0:02:44.8]} 10... Qa5 {[%clk 0:02:08.2]} 11. O-O {[%clk
0:02:42.8]} 11... O-O {[%clk 0:01:54.7]} 12. Rfc1 {[%clk 0:02:41.2]} 12... c4
{[%clk 0:01:47.6]} 13. Qc2 {[%clk 0:02:38.3]} 13... Rfc8 {[%clk 0:01:31.1]} 14.
Bf4 {[%clk 0:02:16.2]} 14... h6 {[%clk 0:01:18.7]} 15. a3 {[%clk 0:02:11.3]}
15... Bf8 {[%clk 0:01:05.9]} 16. Ne5 {[%clk 0:02:11]} 16... b5 {[%clk
0:01:01.8]} 17. Bf3 {[%clk 0:02:10]} 17... Nb6 {[%clk 0:00:56.2]} 18. g4 {[%clk
0:02:05.4]} 18... b4 {[%clk 0:00:43]} 19. axb4 {[%clk 0:02:04.5]} 19... Qxb4
{[%clk 0:00:43.9]} 20. h4 {[%clk 0:02:00.7]} 20... Ne8 {[%clk 0:00:20.9]} 21. g5
{[%clk 0:01:54.9]} 21... hxg5 {[%clk 0:00:20.4]} 22. hxg5 {[%clk 0:01:55.8]}
22... g6 {[%clk 0:00:20.4]} 23. Nxg6 {[%clk 0:01:21.7]} 23... fxg6 {[%clk
0:00:20.4]} 24. Qxg6+ {[%clk 0:01:22.6]} 24... Ng7 {[%clk 0:00:21]} 25. Qh6
{[%clk 0:01:22.9]} 25... Qe7 {[%clk 0:00:09.4]} 26. Be5 {[%clk 0:01:20.2]} 26...
Nd7 {[%clk 0:00:05.8]} 27. Nxd5 {[%clk 0:01:15.1]} 1-0

[Event "*** Titled Tuesday Blitz"]
[Site "Chess.com"]
[Date "2020.12.01"]
[Round "6"]
[White "DonPreuss"]
[Black "GAusal"]
[Result "1-0"]
[WhiteElo "2229"]
[BlackElo "2085"]
[TimeControl "180+1"]
[EndTime "11:03:47 PST"]
[Termination "DonPreuss won by checkmate"]

1. d4 {[%clk 0:03:00.9]} 1... d5 {[%clk 0:02:59]} 2. e4 {[%clk 0:03:00.4]} 2...
dxe4 {[%clk 0:02:57.9]} 3. Nc3 {[%clk 0:03:00.9]} 3... Nf6 {[%clk 0:02:53.8]} 4.
f3 {[%clk 0:03:01.1]} 4... exf3 {[%clk 0:02:50.8]} 5. Nxf3 {[%clk 0:03:02]} 5...
Nbd7 {[%clk 0:02:47.6]} 6. Bd3 {[%clk 0:02:32.6]} 6... g6 {[%clk 0:02:47.8]} 7.
O-O {[%clk 0:02:32.4]} 7... Bg7 {[%clk 0:02:44.4]} 8. Qe1 {[%clk 0:02:32.5]}
8... O-O {[%clk 0:02:44]} 9. Qh4 {[%clk 0:02:32.5]} 9... c5 {[%clk 0:02:37.7]}
10. Bh6 {[%clk 0:02:20.1]} 10... Bxh6 {[%clk 0:02:32.7]} 11. Qxh6 {[%clk
0:02:19.3]} 11... cxd4 {[%clk 0:02:29]} 12. Ng5 {[%clk 0:01:54.3]} 12... dxc3
{[%clk 0:02:22.7]} 13. bxc3 {[%clk 0:01:30.5]} 13... Re8 {[%clk 0:02:16.1]} 14.
Nxh7 {[%clk 0:00:53.5]} 14... Nxh7 {[%clk 0:02:09.7]} 15. Rxf7 {[%clk
0:00:53.4]} 15... Kxf7 {[%clk 0:02:01.5]} 16. Bxg6+ {[%clk 0:00:28.4]} 16... Ke6
{[%clk 0:01:51.1]} 17. Bf5+ {[%clk 0:00:16.1]} 17... Kd5 {[%clk 0:01:47.9]} 18.
Qe6+ {[%clk 0:00:11.9]} 18... Kc5 {[%clk 0:01:42.9]} 19. Rd1 {[%clk 0:00:09.6]}
19... Nhf6 {[%clk 0:01:33]} 20. c4 {[%clk 0:00:08]} 20... a5 {[%clk 0:01:13.1]}
21. Rd5+ {[%clk 0:00:06.2]} 21... Kb4 {[%clk 0:01:10.8]} 22. Rb5+ {[%clk
0:00:04.9]} 22... Ka3 {[%clk 0:01:09.3]} 23. Qe3+ {[%clk 0:00:04.3]} 23... Kxa2
{[%clk 0:01:02.9]} 24. Qb3+ {[%clk 0:00:05.2]} 24... Ka1 {[%clk 0:01:03.1]} 25.
Qb1# {[%clk 0:00:05.5]} 1-0

[Event "*** Titled Tuesday Blitz"]
[Site "Chess.com"]
[Date "2020.12.01"]
[Round "6"]
[White "mapleaff"]
[Black "Nachsueb"]
[Result "1-0"]
[WhiteElo "2395"]
[BlackElo "2198"]
[TimeControl "180+1"]
[EndTime "11:03:48 PST"]
[Termination "mapleaff won by checkmate"]

1. e4 {[%clk 0:03:00.9]} 1... c5 {[%clk 0:02:59.5]} 2. Nf3 {[%clk 0:03:01.2]}
2... Nc6 {[%clk 0:02:58.5]} 3. Bb5 {[%clk 0:03:00.4]} 3... g6 {[%clk 0:02:57.8]}
4. Bxc6 {[%clk 0:02:59.5]} 4... dxc6 {[%clk 0:02:56.2]} 5. d3 {[%clk 0:03:00.4]}
5... Bg7 {[%clk 0:02:56.5]} 6. Nc3 {[%clk 0:02:58]} 6... e5 {[%clk 0:02:54.9]}
7. Be3 {[%clk 0:02:57.8]} 7... Nf6 {[%clk 0:02:48.7]} 8. h3 {[%clk 0:02:56.5]}
8... Nd7 {[%clk 0:02:48.3]} 9. Qd2 {[%clk 0:02:55.8]} 9... O-O {[%clk 0:02:43]}
10. O-O {[%clk 0:02:54.9]} 10... Re8 {[%clk 0:02:33.2]} 11. Nh2 {[%clk
0:02:53.5]} 11... b6 {[%clk 0:02:29.2]} 12. f4 {[%clk 0:02:52.8]} 12... exf4
{[%clk 0:02:27.7]} 13. Bxf4 {[%clk 0:02:52.6]} 13... Ne5 {[%clk 0:02:22.4]} 14.
Qf2 {[%clk 0:02:47.2]} 14... Rf8 {[%clk 0:02:08.3]} 15. Kh1 {[%clk 0:02:33.5]}
15... Be6 {[%clk 0:02:02.3]} 16. a4 {[%clk 0:02:29.8]} 16... a5 {[%clk
0:02:01.7]} 17. b3 {[%clk 0:02:28.9]} 17... Nxd3 {[%clk 0:01:54.6]} 18. cxd3
{[%clk 0:02:26.4]} 18... Bxc3 {[%clk 0:01:54.4]} 19. e5 {[%clk 0:02:23.9]} 19...
Bxa1 {[%clk 0:01:40]} 20. Rxa1 {[%clk 0:02:21.9]} 20... Qxd3 {[%clk 0:01:38.2]}
21. Rf1 {[%clk 0:02:13.6]} 21... f6 {[%clk 0:01:20.9]} 22. Bh6 {[%clk
0:02:11.2]} 22... Rf7 {[%clk 0:01:19.1]} 23. exf6 {[%clk 0:02:11.1]} 23... Bd5
{[%clk 0:01:17.7]} 24. Kg1 {[%clk 0:02:04]} 24... Qxb3 {[%clk 0:01:13.4]} 25.
Ng4 {[%clk 0:01:59.3]} 25... Qa2 {[%clk 0:00:56.7]} 26. Qg3 {[%clk 0:01:46]}
26... Re8 {[%clk 0:00:51.5]} 27. Bg7 {[%clk 0:01:42.3]} 27... Rxg7 {[%clk
0:00:22.4]} 28. Nh6+ {[%clk 0:01:41.1]} 28... Kh8 {[%clk 0:00:20.6]} 29. fxg7+
{[%clk 0:01:41.7]} 29... Kxg7 {[%clk 0:00:21]} 30. Nf5+ {[%clk 0:01:39.7]} 30...
Kg8 {[%clk 0:00:17.2]} 31. Ne7+ {[%clk 0:01:28.7]} 31... Rxe7 {[%clk 0:00:15.9]}
32. Qb8+ {[%clk 0:01:28.4]} 32... Kg7 {[%clk 0:00:09.7]} 33. Qf8# {[%clk
0:01:28.5]} 1-0

[Event "*** Titled Tuesday Blitz"]
[Site "Chess.com"]
[Date "2020.12.01"]
[Round "6"]
[White "Ginger_GM"]
[Black "esskeettit"]
[Result "1-0"]
[WhiteElo "2620"]
[BlackElo "2448"]
[TimeControl "180+1"]
[EndTime "11:03:54 PST"]
[Termination "Ginger_GM won by checkmate"]

1. d4 {[%clk 0:03:00]} 1... Nf6 {[%clk 0:02:58.9]} 2. Bg5 {[%clk 0:02:59.6]}
2... e6 {[%clk 0:02:59.1]} 3. Nf3 {[%clk 0:02:57.5]} 3... h6 {[%clk 0:02:57.7]}
4. Bh4 {[%clk 0:02:57.5]} 4... d5 {[%clk 0:02:57.4]} 5. Nbd2 {[%clk 0:02:57.3]}
5... Be7 {[%clk 0:02:57.2]} 6. e3 {[%clk 0:02:56.3]} 6... b6 {[%clk 0:02:57.5]}
7. c3 {[%clk 0:02:55.4]} 7... O-O {[%clk 0:02:55.4]} 8. Ne5 {[%clk 0:02:52.6]}
8... c5 {[%clk 0:02:49.6]} 9. Bd3 {[%clk 0:02:52.3]} 9... Bb7 {[%clk 0:02:49.4]}
10. O-O {[%clk 0:02:52]} 10... Nbd7 {[%clk 0:02:39.8]} 11. f4 {[%clk 0:02:51.6]}
11... Ne4 {[%clk 0:02:25.9]} 12. Bxe7 {[%clk 0:02:50.8]} 12... Qxe7 {[%clk
0:02:25.7]} 13. Qe2 {[%clk 0:02:47.6]} 13... Ndf6 {[%clk 0:02:15.8]} 14. Rad1
{[%clk 0:02:37.8]} 14... Rac8 {[%clk 0:02:14.7]} 15. g4 {[%clk 0:02:34.4]} 15...
Rfd8 {[%clk 0:02:03.1]} 16. Ndf3 {[%clk 0:02:24.7]} 16... Nh7 {[%clk 0:01:59.8]}
17. Kg2 {[%clk 0:02:22.7]} 17... f6 {[%clk 0:01:43]} 18. Ng6 {[%clk 0:02:18.8]}
18... Qf7 {[%clk 0:01:43.3]} 19. f5 {[%clk 0:02:17.6]} 19... Nhg5 {[%clk
0:01:23.1]} 20. h4 {[%clk 0:02:14.2]} 20... Nxf3 {[%clk 0:01:21.8]} 21. Qxf3
{[%clk 0:02:15.1]} 21... e5 {[%clk 0:01:05.8]} 22. dxe5 {[%clk 0:02:10.7]} 22...
fxe5 {[%clk 0:01:06.7]} 23. Bxe4 {[%clk 0:02:09.4]} 23... dxe4 {[%clk
0:01:05.8]} 24. Qe2 {[%clk 0:02:08.9]} 24... Qf6 {[%clk 0:01:00.6]} 25. Qc4+
{[%clk 0:02:04.1]} 25... Kh7 {[%clk 0:00:59.9]} 26. Kg3 {[%clk 0:02:04.6]} 26...
Rxd1 {[%clk 0:00:53.8]} 27. Rxd1 {[%clk 0:02:04.4]} 27... Rd8 {[%clk 0:00:54.7]}
28. Qe2 {[%clk 0:01:53.8]} 28... Bc6 {[%clk 0:00:34.9]} 29. c4 {[%clk
0:01:49.9]} 29... Rxd1 {[%clk 0:00:30.2]} 30. Qxd1 {[%clk 0:01:49.7]} 30... Be8
{[%clk 0:00:31.1]} 31. h5 {[%clk 0:01:49.2]} 31... Qg5 {[%clk 0:00:28.9]} 32.
Qd2 {[%clk 0:01:43.5]} 32... Qf6 {[%clk 0:00:26.6]} 33. b3 {[%clk 0:01:39.6]}
33... Bf7 {[%clk 0:00:20.6]} 34. a4 {[%clk 0:01:33.9]} 34... a6 {[%clk
0:00:19.9]} 35. Qd7 {[%clk 0:01:33]} 35... b5 {[%clk 0:00:19.6]} 36. axb5 {[%clk
0:01:32.7]} 36... axb5 {[%clk 0:00:19.4]} 37. Nf8+ {[%clk 0:01:32.1]} 37... Kg8
{[%clk 0:00:19.2]} 38. Qc8 {[%clk 0:01:33]} 38... Qd6 {[%clk 0:00:16.5]} 39.
Ng6+ {[%clk 0:01:32.4]} 39... Kh7 {[%clk 0:00:10.2]} 40. Qh8# {[%clk 0:01:31.4]}
1-0

[Event "*** Titled Tuesday Blitz"]
[Site "Chess.com"]
[Date "2020.12.01"]
[Round "6"]
[White "dretch"]
[Black "MPGM"]
[Result "0-1"]
[WhiteElo "2821"]
[BlackElo "2665"]
[TimeControl "180+1"]
[EndTime "11:03:55 PST"]
[Termination "MPGM won by resignation"]

1. d4 {[%clk 0:02:55.3]} 1... d5 {[%clk 0:02:59.7]} 2. c4 {[%clk 0:02:55.3]}
2... e6 {[%clk 0:03:00]} 3. Nc3 {[%clk 0:02:55.5]} 3... a6 {[%clk 0:03:00.4]} 4.
cxd5 {[%clk 0:02:55]} 4... exd5 {[%clk 0:03:01.3]} 5. Bf4 {[%clk 0:02:55.4]}
5... Nf6 {[%clk 0:03:00.8]} 6. e3 {[%clk 0:02:55.9]} 6... Bd6 {[%clk 0:03:01.1]}
7. Bg5 {[%clk 0:02:56.4]} 7... c6 {[%clk 0:02:55.2]} 8. Bd3 {[%clk 0:02:56.7]}
8... O-O {[%clk 0:02:51.9]} 9. Qc2 {[%clk 0:02:52.7]} 9... h6 {[%clk 0:02:52.1]}
10. Bh4 {[%clk 0:02:53]} 10... Re8 {[%clk 0:02:52.8]} 11. Nge2 {[%clk
0:02:50.6]} 11... Nbd7 {[%clk 0:02:50.9]} 12. Ng3 {[%clk 0:02:48.5]} 12... b5
{[%clk 0:02:38.4]} 13. Nf5 {[%clk 0:02:47.9]} 13... Bf8 {[%clk 0:02:37.9]} 14.
g4 {[%clk 0:02:41.8]} 14... c5 {[%clk 0:02:21.3]} 15. Nxd5 {[%clk 0:02:27.3]}
15... Bb7 {[%clk 0:02:17.1]} 16. Nxf6+ {[%clk 0:02:25.6]} 16... Nxf6 {[%clk
0:02:16.6]} 17. Rg1 {[%clk 0:02:17.7]} 17... g5 {[%clk 0:02:10.3]} 18. Bg3
{[%clk 0:02:14.6]} 18... cxd4 {[%clk 0:02:10.6]} 19. Rd1 {[%clk 0:02:06.5]}
19... Rc8 {[%clk 0:02:03.6]} 20. Qb1 {[%clk 0:02:03]} 20... dxe3 {[%clk
0:01:55.5]} 21. Nxe3 {[%clk 0:02:01.2]} 21... Qa5+ {[%clk 0:01:53.7]} 22. Kf1
{[%clk 0:02:01]} 22... Ne4 {[%clk 0:01:48.3]} 23. Ke2 {[%clk 0:01:49.5]} 23...
Qb6 {[%clk 0:01:19.1]} 24. Rge1 {[%clk 0:01:40]} 24... Qc6 {[%clk 0:01:10]} 25.
Bxe4 {[%clk 0:01:02.1]} 25... Rxe4 {[%clk 0:01:10.9]} 26. Qd3 {[%clk 0:01:01.9]}
26... Rce8 {[%clk 0:00:55]} 27. a3 {[%clk 0:00:50.4]} 27... Rxe3+ {[%clk
0:00:50.7]} 28. fxe3 {[%clk 0:00:50.2]} 28... Qg2+ {[%clk 0:00:48.9]} 29. Bf2
{[%clk 0:00:48.6]} 29... Bf3+ {[%clk 0:00:48.7]} 30. Kd2 {[%clk 0:00:49]} 30...
Qxf2+ {[%clk 0:00:49]} 31. Kc1 {[%clk 0:00:48.3]} 31... Bxd1 {[%clk 0:00:47.7]}
32. Qxd1 {[%clk 0:00:44.2]} 32... Rxe3 {[%clk 0:00:46.9]} 33. Rf1 {[%clk
0:00:40.6]} 33... Qe2 {[%clk 0:00:44.9]} 0-1